[Event "Lidkoping Open 2019"]
[Site "Lidkoping"]
[Date "2019.08.25"]
[Round "5.12"]
[White "Bergre, Joachim"]
[Black "Karlsson, Roger"]
[Result "1/2-1/2"]
[ECO "A04"]
[WhiteElo "1928"]
[BlackElo "1892"]
[Annotator "NA"]
[PlyCount "50"]
[EventDate "2019.08.19"]
[EventType "swiss"]
[EventCountry "SWE"]
[SourceTitle "playchess.com"]
[Source "ChessBase"]
[SourceQuality "1"]
[TimeControl "2700+10"]

1. Nf3 {[%emt 0:00:00]} g6 {[%emt 0:00:03]} 2. g3 {[%emt 0:00:20]} c5 {[%emt 0:00:16]} 3. Bg2 {[%emt 0:00:17]} Bg7 {[%emt 0:00:05]} 4. d4 {[%emt 0:00:55]} cxd4 {[%emt 0:01:15]} 5. Nxd4 {[%emt 0:00:16]} Nc6 {[%emt 0:00:51]} 6. c3 {[%emt 0:00:55]} Qb6 {[%emt 0:03:28]} 7. Nb3 {[%emt 0:03:24]} d6 {[%emt 0:01:15]} 8. N1d2 {[%emt 0:02:14]} Nf6 {[%emt 0:01:29]} 9. O-O {[%emt 0:00:58]} O-O {[%emt 0:00:04]} 10. Nc4 {[%emt 0:03:01]} Qc7 {[%emt 0:01:07]} 11. Ne3 {[%emt 0:03:00]} Be6 {[%emt 0:04:03]} 12. Nd4 {[%emt 0:02:47]} Nxd4 {[%emt 0:01:08]} 13. Qxd4 {[%emt 0:02:29]} Qd7 {[%emt 0:07:03]} 14. Qb4 {[%emt 0:02:44]} Rab8 {[%emt 0:01:53]} 15. Re1 {[%emt 0:02:23]} Rfc8 {[%emt 0:02:23]} 16. Bd2 {[%emt 0:03:33]} Bh3 {[%emt 0:01:34]} 17. Bh1 {[%emt 0:00:35]} h5 {[%emt 0:00:07]} 18. Rad1 {[%emt 0:01:29]} b5 {[%emt 0:04:29]} 19. Nd5 {[%emt 0:05:24]} Be6 {[%emt 0:05:41]} 20. Bg5 {[%emt 0:02:46]} Rc4 {[%emt 0:03:08]} 21. Qb3 {[%emt 0:00:42]} Nxd5 {[%emt 0:03:05]} 22. Bxd5 {[%emt 0:00:06]} Bxd5 {[%emt 0:00:16]} 23. Rxd5 {[%emt 0:00:07]} e6 {[%emt 0:00:46]} 24. Rd3 {[%emt 0:00:29]} Qc6 {[%emt 0:00:49]} 25. Qd1 {[%emt 0:02:54]} d5 {[%emt 0:00:13]} 1/2-1/2

[Event "Lidkoping Open 2019"]
[Site "Lidkoping"]
[Date "2019.08.25"]
[Round "5.13"]
[White "Nordstrom, Felix"]
[Black "Mathisen, Runar"]
[Result "1-0"]
[ECO "B39"]
[WhiteElo "2060"]
[BlackElo "1868"]
[Annotator "NA"]
[PlyCount "59"]
[EventDate "2019.08.19"]
[EventType "swiss"]
[EventCountry "SWE"]
[SourceTitle "playchess.com"]
[Source "ChessBase"]
[SourceQuality "1"]
[TimeControl "2700+10"]

1. e4 {[%emt 0:00:00]} c5 {[%emt 0:00:00]} 2. Nf3 {[%emt 0:00:00]} Nc6 {[%emt 0:00:00]} 3. d4 {[%emt 0:00:00]} cxd4 {[%emt 0:00:00]} 4. Nxd4 {[%emt 0:00:02]} g6 {[%emt 0:00:01]} 5. c4 {[%emt 0:00:10]} Bg7 {[%emt 0:00:08]} 6. Be3 {[%emt 0:00:20]} Nf6 {[%emt 0:00:15]} 7. Nc3 {[%emt 0:00:31]} Ng4 {[%emt 0:00:19]} 8. Qxg4 {[%emt 0:00:08]} Nxd4 {[%emt 0:00:04]} 9. Qd1 {[%emt 0:00:05]} e5 {[%emt 0:00:55]} 10. Bd3 {[%emt 0:00:41]} O-O {[%emt 0:00:29]} 11. O-O {[%emt 0:00:13]} a6 {[%emt 0:04:14]} 12. Ne2 {[%emt 0:04:26]} Ne6 {[%emt 0:02:38]} 13. Qd2 {[%emt 0:05:20]} f5 {[%emt 0:04:54]} 14. exf5 {[%emt 0:06:04]} gxf5 {[%emt 0:00:02]} 15. f3 {[%emt 0:02:00]} d5 {[%emt 0:11:23]} 16. cxd5 {[%emt 0:00:49]} Qxd5 {[%emt 0:00:01]} 17. Qc2 {[%emt 0:04:18]} e4 {[%emt 0:12:54]} 18. fxe4 {[%emt 0:01:00]} Qe5 {[%emt 0:00:15]} 19. Bf2 {[%emt 0:08:05]} f4 {[%emt 0:02:00]} 20. Bc4 {[%emt 0:02:27]} Kh8 {[%emt 0:04:03]} 21. Bxe6 {[%emt 0:03:00]} Qxe6 {[%emt 0:00:12]} 22. Bd4 {[%emt 0:00:45]} Bxd4+ {[%emt 0:01:04]} 23. Nxd4 {[%emt 0:00:02]} Qb6 {[%emt 0:00:56]} 24. Qf2 {[%emt 0:01:06]} Bg4 {[%emt 0:00:25]} 25. Rac1 {[%emt 0:01:19]} Rad8 {[%emt 0:00:22]} 26. Nb3 {[%emt 0:02:20]} Qg6 {[%emt 0:00:24]} 27. Rfe1 {[%emt 0:00:54]} Rd7 {[%emt 0:01:06]} 28. e5 {[%emt 0:00:38]} Re7 {[%emt 0:00:25]} 29. Nd4 {[%emt 0:01:18]} Rg8 {[%emt 0:00:21]} 30. Kh1 {[%emt 0:01:59]} 1-0

[Event "Lidkoping Open 2019"]
[Site "Lidkoping"]
[Date "2019.08.25"]
[Round "5.14"]
[White "Johnson, Daniel"]
[Black "Wiklund, Robert"]
[Result "1-0"]
[ECO "D35"]
[WhiteElo "2201"]
[BlackElo "1785"]
[Annotator "ChessBase"]
[PlyCount "59"]
[EventDate "2019.08.19"]
[EventType "swiss"]
[EventCountry "SWE"]
[SourceTitle "playchess.com"]
[Source "ChessBase"]
[SourceQuality "1"]
[TimeControl "2700+10"]

1. d4 {[%emt 0:00:00]} d5 {[%emt 0:00:00]} 2. c4 {[%emt 0:00:02]} e6 {[%emt 0:00:00]} 3. Nc3 {[%emt 0:00:05]} Nf6 {[%emt 0:00:00]} 4. cxd5 {[%emt 0:00:06]} exd5 {[%emt 0:00:00]} 5. Bg5 {[%emt 0:00:01]} Be7 {[%emt 0:00:09]} 6. e3 {[%emt 0:00:06]} O-O {[%emt 0:00:08]} 7. Qc2 {[%emt 0:00:17]} Be6 {[%emt 0:00:35]} 8. Bd3 {[%emt 0:00:17]} Nbd7 {[%emt 0:00:28]} 9. Nge2 {[%emt 0:01:01]} c5 {[%emt 0:00:15]} 10. O-O {[%emt 0:01:08]} h6 {[%emt 0:03:06]} 11. Bh4 {[%emt 0:00:15]} Rc8 {[%emt 0:02:34]} 12. Rad1 {[%emt 0:06:12]} cxd4 {[%emt 0:04:24]} 13. Nxd4 {[%emt 0:02:25]} Ne5 {[%emt 0:00:58]} 14. Bf5 {[%emt 0:02:41]} Qd7 {[%emt 0:01:59]} 15. Qb1 {[%emt 0:06:21]} Ne4 {[%emt 0:01:45]} 16. Nxe4 {[%emt 0:05:42]} Bxh4 {[%emt 0:00:55]} 17. Nc3 {[%emt 0:01:27]} a6 {[%emt 0:03:22]} 18. Nxe6 {[%emt 0:03:09]} fxe6 {[%emt 0:00:08]} 19. Rxd5 {[%emt 0:00:37]} Qf7 {[%emt 0:04:41]} 20. Bh7+ {[%emt 0:01:23]} Kh8 {[%emt 0:00:07]} 21. Rxe5 {[%emt 0:00:15]} Bxf2+ {[%emt 0:00:38]} 22. Kh1 {[%emt 0:00:09]} Qd7 {[%emt 0:04:22]} 23. Bc2 {[%emt 0:02:09]} Qd6 {[%emt 0:09:53]} 24. Re4 {[%emt 0:00:45]} Qc5 {[%emt 0:00:59]} 25. Qd1 {[%emt 0:05:10]} Bxe3 {[%emt 0:00:45]} 26. Rxf8+ {[%emt 0:02:54]} Rxf8 {[%emt 0:00:05]} 27. Qd3 {[%emt 0:00:51]} Bc1 {[%emt 0:05:33]} 28. Re5 {[%emt 0:02:12]} Rf1+ {[%emt 0:00:34]} 29. Qxf1 {[%emt 0:00:05]} Qxe5 {[%emt 0:00:03]} 30. Qf8# {[%emt 0:00:15]} 1-0

[Event "Lidkoping Open 2019"]
[Site "Lidkoping"]
[Date "2019.08.25"]
[Round "5.15"]
[White "Kjellqvist, Fredrik"]
[Black "Johansson, Stefan"]
[Result "0-1"]
[ECO "A04"]
[WhiteElo "1778"]
[BlackElo "2016"]
[Annotator "NA"]
[PlyCount "58"]
[EventDate "2019.08.19"]
[EventType "swiss"]
[EventCountry "SWE"]
[SourceTitle "playchess.com"]
[Source "ChessBase"]
[SourceQuality "1"]
[TimeControl "2700+10"]

1. Nf3 {[%emt 0:00:00]} f5 {[%emt 0:00:00]} 2. e4 {[%emt 0:00:17]} d6 {[%emt 0:01:00]} 3. Bc4 {[%emt 0:03:07]} fxe4 {[%emt 0:05:04]} 4. Ng5 {[%emt 0:00:39]} d5 {[%emt 0:00:06]} 5. Bb3 {[%emt 0:02:19]} Bf5 {[%emt 0:03:28]} 6. f3 {[%emt 0:04:32]} e6 {[%emt 0:04:33]} 7. d3 {[%emt 0:07:12]} exd3 {[%emt 0:02:12]} 8. g4 {[%emt 0:04:52]} Be7 {[%emt 0:02:04]} 9. h4 {[%emt 0:04:06]} dxc2 {[%emt 0:03:27]} 10. Bxc2 {[%emt 0:00:02]} Bxc2 {[%emt 0:00:13]} 11. Qxc2 {[%emt 0:00:17]} Qd6 {[%emt 0:00:01]} 12. Be3 {[%emt 0:03:09]} Bxg5 {[%emt 0:02:46]} 13. hxg5 {[%emt 0:06:30]} Qg3+ {[%emt 0:00:27]} 14. Bf2 {[%emt 0:00:02]} Qe5+ {[%emt 0:00:43]} 15. Kf1 {[%emt 0:01:10]} Nc6 {[%emt 0:00:27]} 16. Nc3 {[%emt 0:04:11]} O-O-O {[%emt 0:01:57]} 17. Kg2 {[%emt 0:03:43]} Nge7 {[%emt 0:02:53]} 18. Rae1 {[%emt 0:00:27]} Qd6 {[%emt 0:01:45]} 19. Rxh7 {[%emt 0:00:02]} g6 {[%emt 0:03:25]} 20. Bg3 {[%emt 0:00:35]} e5 {[%emt 0:01:15]} 21. Rxh8 {[%emt 0:00:10]} Rxh8 {[%emt 0:00:02]} 22. a3 {[%emt 0:00:08]} a6 {[%emt 0:00:29]} 23. b4 {[%emt 0:00:02]} Rf8 {[%emt 0:00:40]} 24. b5 {[%emt 0:00:02]} axb5 {[%emt 0:00:02]} 25. Nxb5 {[%emt 0:00:00]} Qe6 {[%emt 0:00:08]} 26. a4 {[%emt 0:00:12]} d4 {[%emt 0:00:19]} 27. Rc1 {[%emt 0:00:15]} Nd5 {[%emt 0:00:05]} 28. Bf2 {[%emt 0:00:11]} Qf7 {[%emt 0:00:10]} 29. Qe2 {[%emt 0:00:13]} Nf4+ {[%emt 0:10:09]} 0-1

[Event "Lidkoping Open 2019"]
[Site "Lidkoping"]
[Date "2019.08.25"]
[Round "5.16"]
[White "Andersen, Dag"]
[Black "Svensson, Leif"]
[Result "1-0"]
[ECO "D45"]
[WhiteElo "1873"]
[BlackElo "2027"]
[Annotator "NA"]
[PlyCount "57"]
[EventDate "2019.08.19"]
[EventType "swiss"]
[EventCountry "SWE"]
[SourceTitle "playchess.com"]
[Source "ChessBase"]
[SourceQuality "1"]
[TimeControl "2700+10"]

1. Nf3 {[%emt 0:00:03]} d5 {[%emt 0:00:00]} 2. c4 {[%emt 0:00:05]} e6 {[%emt 0:00:03]} 3. e3 {[%emt 0:00:05]} Nf6 {[%emt 0:00:46]} 4. b3 {[%emt 0:00:08]} Bd6 {[%emt 0:00:23]} 5. Bb2 {[%emt 0:00:07]} Nbd7 {[%emt 0:00:26]} 6. Nc3 {[%emt 0:00:14]} c6 {[%emt 0:00:07]} 7. Qc2 {[%emt 0:00:20]} O-O {[%emt 0:00:15]} 8. d4 {[%emt 0:01:41]} Re8 {[%emt 0:00:11]} 9. Be2 {[%emt 0:00:14]} b6 {[%emt 0:07:46]} 10. O-O {[%emt 0:00:28]} Bb7 {[%emt 0:00:04]} 11. Rad1 {[%emt 0:01:54]} Qc7 {[%emt 0:03:33]} 12. h3 {[%emt 0:02:25]} Rad8 {[%emt 0:01:51]} 13. Qb1 {[%emt 0:00:33]} a6 {[%emt 0:02:31]} 14. Rc1 {[%emt 0:02:55]} Qb8 {[%emt 0:00:37]} 15. Rfd1 {[%emt 0:01:22]} c5 {[%emt 0:09:36]} 16. cxd5 {[%emt 0:00:24]} exd5 {[%emt 0:00:10]} 17. dxc5 {[%emt 0:02:20]} bxc5 {[%emt 0:00:05]} 18. Qf5 {[%emt 0:04:02]} Qa8 {[%emt 0:06:16]} 19. Na4 {[%emt 0:01:20]} Bf8 {[%emt 0:01:47]} 20. Bxf6 {[%emt 0:01:30]} Nxf6 {[%emt 0:01:08]} 21. Nxc5 {[%emt 0:00:54]} Bxc5 {[%emt 0:00:05]} 22. Rxc5 {[%emt 0:00:15]} d4 {[%emt 0:00:15]} 23. Nxd4 {[%emt 0:09:10]} Ne4 {[%emt 0:06:04]} 24. Rc7 {[%emt 0:01:01]} Nd6 {[%emt 0:00:34]} 25. Qg4 {[%emt 0:05:02]} Re4 {[%emt 0:02:24]} 26. Qg3 {[%emt 0:00:37]} Nb5 {[%emt 0:00:35]} 27. Nxb5 {[%emt 0:00:37]} Rxd1+ {[%emt 0:00:02]} 28. Bxd1 {[%emt 0:00:12]} axb5 {[%emt 0:00:04]} 29. Bf3 {[%emt 0:00:42]} 1-0

[Event "Lidkoping Open 2019"]
[Site "Lidkoping"]
[Date "2019.08.25"]
[Round "5.17"]
[White "Wiman, Kenneth"]
[Black "Nordlund, Keith"]
[Result "1/2-1/2"]
[ECO "A45"]
[WhiteElo "1868"]
[BlackElo "2013"]
[Annotator "NA"]
[PlyCount "87"]
[EventDate "2019.08.19"]
[EventType "swiss"]
[EventCountry "SWE"]
[SourceTitle "playchess.com"]
[Source "ChessBase"]
[SourceQuality "1"]
[TimeControl "2700+10"]

1. d4 {[%emt 0:00:00]} Nf6 {[%emt 0:00:00]} 2. Bg5 {[%emt 0:00:18]} Ne4 {[%emt 0:01:28]} 3. Bf4 {[%emt 0:00:13]} d5 {[%emt 0:00:43]} 4. f3 {[%emt 0:02:09]} Nf6 {[%emt 0:01:02]} 5. Nc3 {[%emt 0:00:37]} Bf5 {[%emt 0:01:40]} 6. e3 {[%emt 0:01:25]} c6 {[%emt 0:02:07]} 7. g4 {[%emt 0:02:20]} Bg6 {[%emt 0:01:08]} 8. Qd2 {[%emt 0:00:37]} e6 {[%emt 0:00:47]} 9. a3 {[%emt 0:00:59]} Bd6 {[%emt 0:02:27]} 10. Nge2 {[%emt 0:01:08]} h6 {[%emt 0:01:32]} 11. O-O-O {[%emt 0:01:17]} Bh7 {[%emt 0:02:24]} 12. Bxd6 {[%emt 0:02:55]} Qxd6 {[%emt 0:00:06]} 13. Nf4 {[%emt 0:02:24]} Nbd7 {[%emt 0:02:30]} 14. Nd3 {[%emt 0:03:52]} O-O-O {[%emt 0:00:48]} 15. Be2 {[%emt 0:03:28]} e5 {[%emt 0:01:07]} 16. dxe5 {[%emt 0:01:45]} Nxe5 {[%emt 0:00:05]} 17. Nxe5 {[%emt 0:00:14]} Qxe5 {[%emt 0:00:02]} 18. Qd4 {[%emt 0:01:49]} Rhe8 {[%emt 0:03:37]} 19. Qxa7 {[%emt 0:04:13]} Qxe3+ {[%emt 0:00:06]} 20. Qxe3 {[%emt 0:00:08]} Rxe3 {[%emt 0:00:03]} 21. Rd2 {[%emt 0:02:20]} Rde8 {[%emt 0:01:47]} 22. Bd1 {[%emt 0:02:29]} Nd7 {[%emt 0:02:40]} 23. Re2 {[%emt 0:01:17]} d4 {[%emt 0:02:01]} 24. Rxe3 {[%emt 0:01:50]} Rxe3 {[%emt 0:00:08]} 25. Ne2 {[%emt 0:03:14]} Rxf3 {[%emt 0:04:39]} 26. Nxd4 {[%emt 0:00:32]} Rf2 {[%emt 0:00:06]} 27. h4 {[%emt 0:00:41]} Nb6 {[%emt 0:01:56]} 28. g5 {[%emt 0:00:41]} Nd5 {[%emt 0:02:06]} 29. gxh6 {[%emt 0:00:54]} gxh6 {[%emt 0:00:02]} 30. Re1 {[%emt 0:00:33]} Rf4 {[%emt 0:01:31]} 31. Nf3 {[%emt 0:00:26]} Be4 {[%emt 0:00:45]} 32. Ne5 {[%emt 0:00:53]} Kc7 {[%emt 0:02:34]} 33. h5 {[%emt 0:00:18]} f5 {[%emt 0:03:12]} 34. Nf7 {[%emt 0:00:10]} Rh4 {[%emt 0:00:06]} 35. Nxh6 {[%emt 0:00:05]} Nf6 {[%emt 0:00:29]} 36. Nf7 {[%emt 0:00:16]} Nxh5 {[%emt 0:00:21]} 37. Ng5 {[%emt 0:00:18]} Nf6 {[%emt 0:00:39]} 38. Bf3 {[%emt 0:00:25]} Bxf3 {[%emt 0:00:41]} 39. Nxf3 {[%emt 0:00:02]} Rh3 {[%emt 0:00:04]} 40. Rf1 {[%emt 0:00:18]} Ne4 {[%emt 0:00:55]} 41. b3 {[%emt 0:00:18]} Ng3 {[%emt 0:00:11]} 42. Rf2 {[%emt 0:00:06]} Ne4 {[%emt 0:00:05]} 43. Rf1 {[%emt 0:00:02]} Ng3 {[%emt 0:00:01]} 44. Rf2 {[%emt 0:02:21]} 1/2-1/2

[Event "Lidkoping Open 2019"]
[Site "Lidkoping"]
[Date "2019.08.25"]
[Round "5.18"]
[White "Johansson, Eva"]
[Black "Bengtsson, Siv"]
[Result "0-1"]
[ECO "D77"]
[WhiteElo "1869"]
[BlackElo "2074"]
[Annotator "NA"]
[PlyCount "83"]
[EventDate "2019.08.19"]
[EventType "swiss"]
[EventCountry "SWE"]
[SourceTitle "playchess.com"]
[Source "ChessBase"]
[SourceQuality "1"]
[TimeControl "2700+10"]

1. d4 {[%emt 0:00:00]} Nf6 {[%emt 0:00:00]} 2. c4 {[%emt 0:00:03]} g6 {[%emt 0:00:00]} 3. Nf3 {[%emt 0:00:05]} Bg7 {[%emt 0:00:02]} 4. g3 {[%emt 0:00:03]} O-O {[%emt 0:01:18]} 5. Bg2 {[%emt 0:00:03]} d5 {[%emt 0:00:12]} 6. O-O {[%emt 0:01:14]} dxc4 {[%emt 0:00:39]} 7. Na3 {[%emt 0:01:23]} c3 {[%emt 0:00:59]} 8. bxc3 {[%emt 0:00:11]} c5 {[%emt 0:00:46]} 9. Nc2 {[%emt 0:03:03]} Qa5 {[%emt 0:04:32]} 10. Bd2 {[%emt 0:05:31]} Ne4 {[%emt 0:02:09]} 11. Qe1 {[%emt 0:00:37]} Nxd2 {[%emt 0:00:27]} 12. Qxd2 {[%emt 0:00:02]} Nc6 {[%emt 0:03:20]} 13. e3 {[%emt 0:02:22]} Rd8 {[%emt 0:04:09]} 14. Rfd1 {[%emt 0:03:22]} Bf5 {[%emt 0:09:22]} 15. Nh4 {[%emt 0:01:43]} Bxc2 {[%emt 0:00:25]} 16. Qxc2 {[%emt 0:00:21]} Rac8 {[%emt 0:00:43]} 17. Qb3 {[%emt 0:06:58]} b6 {[%emt 0:04:09]} 18. Rac1 {[%emt 0:03:03]} c4 {[%emt 0:02:32]} 19. Qc2 {[%emt 0:01:10]} e6 {[%emt 0:00:38]} 20. Nf3 {[%emt 0:01:13]} Ne7 {[%emt 0:00:40]} 21. Nd2 {[%emt 0:01:46]} b5 {[%emt 0:00:14]} 22. Ne4 {[%emt 0:00:09]} Qb6 {[%emt 0:00:53]} 23. Qe2 {[%emt 0:01:14]} e5 {[%emt 0:01:09]} 24. h4 {[%emt 0:01:58]} exd4 {[%emt 0:00:48]} 25. exd4 {[%emt 0:00:26]} Nd5 {[%emt 0:00:13]} 26. Nd2 {[%emt 0:03:52]} Qa5 {[%emt 0:01:40]} 27. Ne4 {[%emt 0:00:49]} Re8 {[%emt 0:00:35]} 28. Qc2 {[%emt 0:00:14]} Rcd8 {[%emt 0:00:04]} 29. Nc5 {[%emt 0:00:23]} Re7 {[%emt 0:01:42]} 30. Ne4 {[%emt 0:01:58]} Qc7 {[%emt 0:00:57]} 31. Rb1 {[%emt 0:01:11]} a6 {[%emt 0:00:49]} 32. Nc5 {[%emt 0:00:04]} Qd6 {[%emt 0:00:38]} 33. Re1 {[%emt 0:00:24]} Rxe1+ {[%emt 0:00:45]} 34. Rxe1 {[%emt 0:00:01]} Rb8 {[%emt 0:00:30]} 35. Bxd5 {[%emt 0:00:24]} Qxd5 {[%emt 0:00:03]} 36. Nxa6 {[%emt 0:00:01]} Rd8 {[%emt 0:00:15]} 37. Nc5 {[%emt 0:00:06]} b4 {[%emt 0:00:16]} 38. cxb4 {[%emt 0:00:25]} Bxd4 {[%emt 0:00:19]} 39. Rc1 {[%emt 0:01:24]} c3 {[%emt 0:00:27]} 40. Ne4 {[%emt 0:00:59]} Rc8 {[%emt 0:00:21]} 41. Rd1 {[%emt 0:00:16]} Qe5 {[%emt 0:00:19]} 42. Kg2 {[%emt 0:00:28]} 0-1

[Event "Lidkoping Open 2019"]
[Site "Lidkoping"]
[Date "2019.08.25"]
[Round "5.19"]
[White "Nordstrom, Per-Olov"]
[Black "Andersson, Kjell-Ake"]
[Result "0-1"]
[ECO "C00"]
[WhiteElo "1899"]
[BlackElo "1922"]
[Annotator "NA"]
[PlyCount "68"]
[EventDate "2019.08.19"]
[EventType "swiss"]
[EventCountry "SWE"]
[SourceTitle "playchess.com"]
[Source "ChessBase"]
[SourceQuality "1"]
[TimeControl "2700+10"]

1. e4 {[%emt 0:00:00]} e6 {[%emt 0:00:00]} 2. d3 {[%emt 0:00:02]} d5 {[%emt 0:00:00]} 3. Nd2 {[%emt 0:00:04]} c5 {[%emt 0:00:00]} 4. Ngf3 {[%emt 0:00:13]} Nc6 {[%emt 0:00:02]} 5. g3 {[%emt 0:00:09]} Nf6 {[%emt 0:00:05]} 6. Bg2 {[%emt 0:00:22]} Be7 {[%emt 0:00:03]} 7. O-O {[%emt 0:00:14]} O-O {[%emt 0:00:03]} 8. e5 {[%emt 0:00:39]} Ne8 {[%emt 0:00:04]} 9. Re1 {[%emt 0:00:26]} b5 {[%emt 0:00:12]} 10. Nf1 {[%emt 0:01:09]} Bd7 {[%emt 0:01:10]} 11. h4 {[%emt 0:00:21]} a5 {[%emt 0:00:38]} 12. N1h2 {[%emt 0:00:58]} b4 {[%emt 0:02:09]} 13. h5 {[%emt 0:03:02]} a4 {[%emt 0:02:58]} 14. a3 {[%emt 0:00:58]} Nc7 {[%emt 0:00:49]} 15. h6 {[%emt 0:00:30]} g6 {[%emt 0:00:09]} 16. g4 {[%emt 0:02:17]} Nb5 {[%emt 0:04:06]} 17. g5 {[%emt 0:06:19]} Ncd4 {[%emt 0:06:30]} 18. Qd2 {[%emt 0:04:31]} b3 {[%emt 0:07:43]} 19. Nxd4 {[%emt 0:07:08]} Nxd4 {[%emt 0:05:56]} 20. c4 {[%emt 0:00:45]} Nc2 {[%emt 0:02:27]} 21. cxd5 {[%emt 0:00:11]} exd5 {[%emt 0:00:47]} 22. Bxd5 {[%emt 0:00:35]} Nxa1 {[%emt 0:00:04]} 23. e6 {[%emt 0:08:02]} fxe6 {[%emt 0:03:45]} 24. Qc3 {[%emt 0:05:03]} Rf7 {[%emt 0:03:10]} 25. Bxa8 {[%emt 0:01:09]} Qxa8 {[%emt 0:00:18]} 26. Ng4 {[%emt 0:00:42]} Qf3 {[%emt 0:01:54]} 27. Ne5 {[%emt 0:00:56]} Qxf2+ {[%emt 0:01:03]} 28. Kh1 {[%emt 0:00:02]} Nc2 {[%emt 0:01:32]} 29. Bd2 {[%emt 0:01:26]} Nxe1 {[%emt 0:00:14]} 30. Bxe1 {[%emt 0:00:12]} Qf1+ {[%emt 0:00:20]} 31. Kh2 {[%emt 0:00:03]} Bd6 {[%emt 0:00:02]} 32. Bg3 {[%emt 0:00:09]} Bxe5 {[%emt 0:00:43]} 33. Qxe5 {[%emt 0:00:07]} Bc6 {[%emt 0:00:09]} 34. Qb8+ {[%emt 0:01:45]} Rf8 {[%emt 0:00:01]} 0-1

[Event "Lidkoping Open 2019"]
[Site "Lidkoping"]
[Date "2019.08.25"]
[Round "5.20"]
[White "Frisk, Anders"]
[Black "Arvidsson, Jonas"]
[Result "1/2-1/2"]
[ECO "A28"]
[WhiteElo "1776"]
[BlackElo "1993"]
[Annotator "NA"]
[PlyCount "81"]
[EventDate "2019.08.19"]
[EventType "swiss"]
[EventCountry "SWE"]
[SourceTitle "playchess.com"]
[Source "ChessBase"]
[SourceQuality "1"]
[TimeControl "2700+10"]

1. c4 {[%emt 0:00:00]} e5 {[%emt 0:00:00]} 2. Nc3 {[%emt 0:00:00]} Nf6 {[%emt 0:00:02]} 3. Nf3 {[%emt 0:00:11]} Nc6 {[%emt 0:00:13]} 4. d4 {[%emt 0:00:08]} exd4 {[%emt 0:01:07]} 5. Nxd4 {[%emt 0:00:06]} Bc5 {[%emt 0:01:23]} 6. Nxc6 {[%emt 0:00:56]} bxc6 {[%emt 0:00:04]} 7. g3 {[%emt 0:00:36]} O-O {[%emt 0:04:02]} 8. Bg2 {[%emt 0:00:44]} Bb7 {[%emt 0:01:08]} 9. O-O {[%emt 0:00:43]} Qe7 {[%emt 0:00:31]} 10. e3 {[%emt 0:05:24]} Rfd8 {[%emt 0:00:41]} 11. Qc2 {[%emt 0:04:31]} d5 {[%emt 0:01:46]} 12. Na4 {[%emt 0:05:56]} Ba6 {[%emt 0:03:32]} 13. b3 {[%emt 0:05:11]} Bd6 {[%emt 0:02:07]} 14. Rd1 {[%emt 0:03:09]} Be5 {[%emt 0:02:38]} 15. Rb1 {[%emt 0:02:02]} dxc4 {[%emt 0:02:34]} 16. Rxd8+ {[%emt 0:03:26]} Rxd8 {[%emt 0:00:06]} 17. bxc4 {[%emt 0:01:17]} Qe6 {[%emt 0:01:41]} 18. Nb2 {[%emt 0:04:03]} Bxb2 {[%emt 0:02:44]} 19. Bxb2 {[%emt 0:02:33]} Bxc4 {[%emt 0:00:06]} 20. Bxf6 {[%emt 0:00:49]} gxf6 {[%emt 0:00:14]} 21. Rc1 {[%emt 0:00:57]} Bxa2 {[%emt 0:02:47]} 22. Bxc6 {[%emt 0:01:03]} Qb3 {[%emt 0:02:43]} 23. Be4 {[%emt 0:01:07]} Qxc2 {[%emt 0:01:40]} 24. Rxc2 {[%emt 0:00:07]} Rd1+ {[%emt 0:00:03]} 25. Kg2 {[%emt 0:00:23]} Bd5 {[%emt 0:00:05]} 26. Bxd5 {[%emt 0:00:40]} Rxd5 {[%emt 0:00:02]} 27. Rxc7 {[%emt 0:00:25]} Ra5 {[%emt 0:00:03]} 28. h4 {[%emt 0:01:05]} Ra2 {[%emt 0:00:24]} 29. g4 {[%emt 0:00:35]} a5 {[%emt 0:00:12]} 30. Kg3 {[%emt 0:00:23]} a4 {[%emt 0:00:07]} 31. f3 {[%emt 0:00:16]} a3 {[%emt 0:00:08]} 32. Kf4 {[%emt 0:00:32]} Kg7 {[%emt 0:00:03]} 33. Ra7 {[%emt 0:00:07]} Ra1 {[%emt 0:00:07]} 34. Kf5 {[%emt 0:00:29]} a2 {[%emt 0:00:11]} 35. f4 {[%emt 0:00:22]} h6 {[%emt 0:00:15]} 36. h5 {[%emt 0:00:07]} Re1 {[%emt 0:00:21]} 37. Rxa2 {[%emt 0:00:06]} Rxe3 {[%emt 0:00:02]} 38. Ra6 {[%emt 0:00:22]} Rb3 {[%emt 0:00:02]} 39. Ra5 {[%emt 0:00:11]} Rb4 {[%emt 0:00:35]} 40. Rc5 {[%emt 0:00:08]} Ra4 {[%emt 0:00:20]} 41. Rb5 {[%emt 0:00:05]} 1/2-1/2

[Event "Lidkoping Open 2019"]
[Site "Lidkoping"]
[Date "2019.08.25"]
[Round "5.21"]
[White "Isacsson, Jorgen"]
[Black "Beslagic, Smail"]
[Result "1/2-1/2"]
[ECO "D02"]
[WhiteElo "1731"]
[BlackElo "1853"]
[Annotator "NA"]
[PlyCount "30"]
[EventDate "2019.08.19"]
[EventType "swiss"]
[EventCountry "SWE"]
[SourceTitle "playchess.com"]
[Source "ChessBase"]
[SourceQuality "1"]
[TimeControl "2700+10"]

1. Nf3 {[%emt 0:00:00]} d5 {[%emt 0:00:08]} 2. d4 {[%emt 0:00:00]} Nf6 {[%emt 0:00:11]} 3. Bf4 {[%emt 0:00:00]} e6 {[%emt 0:00:27]} 4. e3 {[%emt 0:00:51]} c5 {[%emt 0:00:17]} 5. Nbd2 {[%emt 0:01:45]} Nc6 {[%emt 0:00:31]} 6. Ne5 {[%emt 0:00:13]} Qb6 {[%emt 0:03:08]} 7. Nxc6 {[%emt 0:06:13]} bxc6 {[%emt 0:00:57]} 8. Rb1 {[%emt 0:03:01]} cxd4 {[%emt 0:40:41]} 9. exd4 {[%emt 0:34:27]} Qxd4 {[%emt 0:00:00]} 10. Be3 {[%emt 0:00:00]} Qb4 {[%emt 0:00:00]} 11. a3 {[%emt 0:00:00]} Qb8 {[%emt 0:00:00]} 12. c4 {[%emt 0:00:00]} Be7 {[%emt 0:00:00]} 13. Bd3 {[%emt 0:00:00]} h6 {[%emt 0:00:00]} 14. f4 {[%emt 0:00:00]} Bd7 {[%emt 0:00:00]} 15. O-O {[%emt 0:00:00]} O-O {[%emt 0:00:00]} 1/2-1/2